bitfinex/quotes_ETHUSD_20240717
["timestamp","ask_amount","ask_price","bid_price","bid_amount"]
[1721201907119,2.86234,3493.7,3493.2,7.38]
[1721201907332,2.86234,3493.7,3493.6,0.07547189]
[1721201907610,2.86234,3493.7,3493.2,7.38]
[1721201907848,2.86238,3493.6,3493.2,7.38]
[1721201908051,2.86238,3493.6,3492.9,2.4544]
[1721201908210,2.86238,3493.6,3492.9,5.4544]
[1721201908621,2.86238,3493.6,3492.9,2.4544]
[1721201909154,2.86221,3493.8,3492.9,2.4544]
[1721201909441,2.4459,3494.7,3493.1,2.86277]
[1721201909642,5.4459,3494.7,3493.1,2.86277]
[1721201909850,2.8621,3494.0,3493.1,2.86277]
[1721201910056,2.86197,3494.1,3493.1,4.56277]
[1721201910260,2.86197,3494.1,3493.2,2.8627]
[1721201910438,2.86197,3494.1,3493.1,1.7]
[1721201910624,2.86197,3494.1,3493.1,2.86278]
[1721201910826,2.8618,3494.3,3493.2,5.27569]
[1721201911133,2.86206,3494.0,3493.2,2.413]
[1721201912240,2.86214,3493.9,3493.2,2.413]
[1721201913015,2.86214,3493.9,3492.9,4.1544]
[1721201913215,2.86214,3493.9,3492.9,7.01733]
[1721201913417,2.86221,3493.8,3492.9,7.01733]
[1721201915060,2.86211,3494.0,3493.0,5.16114]
[1721201915216,2.86211,3494.0,3493.2,2.413]
[1721201915421,2.86203,3494.1,3493.2,2.413]
[1721201915731,2.86203,3494.1,3493.3,1.7]
[1721201916246,2.86169,3494.5,3493.6,2.413]
[1721201916428,2.4678,3495.2,3493.8,2.318]
[1721201916429,2.86141,3494.8,3493.8,2.318]
[1721201916631,2.86141,3494.8,3493.9,0.05723513]
[1721201916832,2.8614,3494.8,3493.9,0.05723513]
[1721201917359,2.8614,3494.8,3493.8,5.1802]
[1721201917522,2.86149,3494.7,3493.8,5.56570202]
[1721201918062,2.86149,3494.7,3493.9,0.38550202]
[1721201919823,2.86149,3494.7,3493.8,5.1802]
[1721201920133,2.8614,3494.8,3493.5,7.38]
[1721201920134,2.86191,3494.2,3493.5,7.38]
[1721201920553,2.86191,3494.2,3493.3,6.90019]
[1721201920776,2.86162,3494.6,3493.6,2.413]
[1721201921060,2.86164,3494.5,3493.6,5.2753]
[1721201921231,2.86142,3494.8,3493.7,2.86228]
[1721201922160,2.86108,3495.2,3494.5,2.3711]
[1721201922836,2.86108,3495.2,3494.6,0.07478098]
[1721201923034,2.86095,3495.4,3494.6,0.07478098]
[1721201924074,2.86088,3495.5,3494.6,0.44051383]
[1721201925030,2.86058,3495.8,3494.8,2.413]
[1721201925228,2.86058,3495.8,3494.9,0.05721977]
[1721201925428,2.86058,3495.8,3495.0,2.48688433]
[1721201925648,2.86058,3495.8,3495.1,2.48688433]
[1721201925962,2.86058,3495.8,3495.1,0.07446016]
[1721201926260,2.86065,3495.7,3494.8,6.01308517]
[1721201926463,2.4656,3495.7,3495.2,0.0744017]
[1721201926650,2.86098,3495.3,3494.5,2.97118517]
[1721201926851,2.86091,3495.4,3495.3,0.07429426]
[1721201927031,2.86091,3495.4,3494.6,7.38]
[1721201927032,3.433073,3495.4,3494.6,7.38]
[1721201927236,3.433073,3495.4,3495.3,0.07429426]
[1721201927441,3.433073,3495.4,3494.6,7.38]
[1721201927442,2.86107,3495.2,3494.6,7.38]
[1721201927642,2.86107,3495.2,3494.7,0.99483883]
[1721201927843,2.86107,3495.2,3494.5,2.97118517]
[1721201928176,2.86107,3495.2,3494.6,2.4870738]
[1721201928343,2.86125,3495.0,3494.5,2.3711]
[1721201928681,2.86125,3495.0,3494.3,0.60008517]
[1721201928973,2.86125,3495.0,3494.4,2.48721685]
[1721201929158,2.86125,3495.0,3494.3,3.0]
[1721201929357,2.86125,3495.0,3494.4,2.48725338]
[1721201929536,2.86107,3495.2,3494.3,3.0]
[1721201929747,2.86092,3495.4,3494.6,2.4685]
[1721201930082,2.86106,3495.2,3494.6,2.4685]
[1721201930449,2.86124,3495.0,3494.4,0.60008517]
[1721201930650,2.86124,3495.0,3494.5,2.4871522]
[1721201930893,2.86124,3495.0,3494.3,3.60008517]
[1721201931185,2.86132,3494.9,3494.4,2.48721897]
[1721201931359,2.86132,3494.9,3494.3,3.60008517]
[1721201931360,2.86132,3494.9,3494.5,0.99488759]
[1721201931560,2.86132,3494.9,3494.3,3.60008517]
[1721201931772,2.86132,3494.9,3494.4,2.48721085]
[1721201932081,2.86132,3494.9,3494.5,0.99488434]
[1721201932282,2.86132,3494.9,3494.3,3.60008517]
[1721201932283,2.86156,3494.6,3494.3,3.60008517]
[1721201932480,2.86156,3494.6,3494.3,3.0]
[1721201932789,2.86145,3494.8,3494.3,3.0]
[1721201933277,2.86148,3494.7,3494.3,3.0]
[1721201933646,2.86093,3495.4,3494.3,3.0]
[1721201933854,2.8614,3494.8,3494.3,3.0]
[1721201934271,2.86156,3494.6,3494.2,7.38]
[1721201935282,2.86172,3494.4,3494.2,7.38]
[1721201935578,2.86172,3494.4,3494.0,2.86]
[1721201936084,2.86165,3494.5,3494.0,2.86]
[1721201936378,2.86156,3494.6,3494.0,2.86]
[1721201936584,2.86164,3494.5,3494.0,2.86]
[1721201936948,2.86172,3494.4,3494.0,2.86]
[1721201937669,2.86147,3494.7,3494.0,2.86]
[1721201937984,2.86157,3494.6,3494.0,2.86]
[1721201938190,2.86157,3494.6,3494.1,0.13220336]
[1721201938522,2.86145,3494.8,3494.1,0.07497071]
[1721201938646,2.86145,3494.8,3494.0,2.86]
[1721201938852,2.86145,3494.8,3494.2,0.07496751]
[1721201939077,2.86148,3494.7,3494.1,0.07502601]
[1721201941171,3.45683637,3494.9,3494.1,0.07502601]
[1721201941368,2.86131,3494.9,3494.1,0.07502601]
[1721201941749,2.8614,3494.8,3494.1,0.07502601]
[1721201942682,0.59552637,3495.1,3494.2,2.4784]
[1721201943193,0.59552637,3495.1,3494.3,0.07489796]
[1721201943536,2.86128,3495.0,3494.3,0.07489796]
[1721201944488,3.45672637,3495.1,3494.3,0.07489796]
[1721201945174,2.86123,3495.0,3494.3,0.07489796]
[1721201945895,0.59552637,3495.2,3494.3,0.07489796]
[1721201946221,0.59552637,3495.2,3494.4,0.55]
[1721201946222,2.86108,3495.2,3494.4,0.55]
[1721201946514,2.86098,3495.3,3494.5,0.07477704]
[1721201946677,2.86107,3495.2,3494.5,0.07477704]
[1721201947595,2.86099,3495.3,3494.5,0.07477704]
[1721201947802,2.86106,3495.2,3494.5,0.07477704]
[1721201948814,6.65961618,3495.9,3494.5,0.07477704]
[1721201948815,0.59552637,3496.1,3495.2,2.4283]
[1721201948977,2.86064,3495.8,3495.3,0.07427845]
[1721201949178,2.86074,3495.6,3494.8,2.4283]
[1721201949484,2.86058,3495.8,3494.9,0.0720962]
[1721201949485,2.86082,3495.5,3494.9,0.0720962]
[1721201950922,2.86123,3495.0,3494.9,0.0720962]
[1721201951330,2.86123,3495.0,3494.5,2.86]
[1721201951627,2.86155,3494.6,3493.4,1.49234072]
[1721201951923,2.8623,3493.7,3493.5,4.0]
[1721201952222,2.86237,3493.6,3493.5,4.0]
[1721201952525,2.86254,3493.4,3493.3,2.86]
[1721201952734,0.572443,3493.7,3493.3,2.86]
[1721201953095,2.86254,3493.4,3493.3,2.86]
[1721201954224,5.72508,3493.4,3493.3,2.86]
[1721201955426,6.3548323,3493.4,3493.3,2.86]
[1721201955925,5.72508,3493.4,3493.3,2.86]
[1721201956940,5.72508,3493.4,3492.1,2.2976]
[1721201956941,2.86306,3492.8,3492.1,2.2976]
[1721201957298,2.86306,3492.8,3492.2,0.06895382]
[1721201957798,2.863,3492.9,3492.2,0.06895382]
[1721201958732,2.86286,3493.1,3492.2,0.06895382]
[1721201958932,2.86286,3493.1,3492.2,1.76895382]
[1721201959238,3.434753,3493.7,3492.3,0.55]
[1721201959398,2.86243,3493.6,3492.4,5.27635]
[1721201959599,2.86243,3493.6,3492.5,0.61877815]
[1721201960106,2.86222,3493.8,3492.8,7.68572]
[1721201960327,2.86198,3494.1,3492.8,7.68572]
[1721201960328,2.86214,3493.9,3492.9,3.55]
[1721201960531,2.86184,3494.3,3493.1,1.7]
[1721201960835,2.86189,3494.2,3493.2,3.48120639]
[1721201961146,2.86198,3494.1,3493.2,0.61851639]
[1721201961301,2.86198,3494.1,3493.2,3.48120639]
[1721201962197,2.86222,3493.8,3493.2,0.06851639]
[1721201962437,2.86212,3494.0,3492.9,7.56292]
[1721201962634,2.86212,3494.0,3493.3,0.06845786]
[1721201962833,2.86214,3493.9,3493.0,0.55]
[1721201963037,2.86189,3494.2,3493.4,0.06839934]
[1721201963202,2.86196,3494.2,3493.5,0.55]
[1721201963397,2.86196,3494.2,3493.6,0.0682823]
[1721201963803,2.86196,3494.2,3493.3,0.55]
[1721201964000,2.86196,3494.2,3493.4,0.06839934]
[1721201964306,2.86196,3494.2,3493.5,0.55]
[1721201964523,2.86196,3494.2,3493.5,0.61834082]
[1721201964721,2.86222,3493.8,3493.5,0.06834082]
[1721201964928,2.86182,3494.3,3493.5,0.06834082]
[1721201965126,0.34573464,3494.2,3493.3,1.7]
[1721201965323,2.86182,3494.3,3493.6,0.0682823]
[1721201965536,2.86205,3494.0,3493.3,1.7]
[1721201965718,2.86205,3494.0,3493.7,0.06822379]
[1721201965917,2.86205,3494.0,3493.3,1.7]
[1721201966118,2.86205,3494.0,3493.8,0.06816527]
[1721201966329,2.86205,3494.0,3493.3,1.7]
[1721201966718,2.86205,3494.0,3493.4,0.06839934]
[1721201967041,0.572394,3494.0,3493.4,0.06839934]
[1721201967239,2.86243,3493.6,3493.2,7.38]
[1721201967536,2.86243,3493.6,3493.5,0.06834082]
[1721201967751,2.86245,3493.5,3493.2,7.38]
[1721201970811,2.86224,3493.8,3493.2,7.38]
[1721201971139,2.86224,3493.8,3492.8,9.7897]
[1721201972214,2.86215,3493.9,3493.0,2.86286]
[1721201972414,2.86215,3493.9,3493.1,3.55]
[1721201972712,2.86235,3493.7,3493.0,3.0]
[1721201973059,2.86235,3493.7,3492.9,4.7]
[1721201973261,2.86243,3493.6,3492.9,3.0]
[1721201976745,2.86223,3493.8,3492.9,5.86289]
[1721201976949,2.86223,3493.8,3493.0,0.55]
[1721201978374,2.8622,3493.9,3493.0,3.41286]
[1721201978662,2.8622,3493.9,3493.1,3.0]
[1721201980177,2.86197,3494.1,3493.1,5.86278]
[1721201980698,0.59552637,3494.6,3493.1,5.86278]
[1721201980699,2.86167,3494.5,3493.4,2.86253]
[1721201980846,2.86187,3494.3,3493.5,2.413]
[1721201982497,2.86167,3494.5,3493.5,2.413]
[1721201982703,2.86167,3494.5,3493.5,5.27545]
[1721201982852,2.86167,3494.5,3493.6,0.06835668]
[1721201983457,2.86172,3494.4,3493.6,0.06835668]
[1721201984996,0.59552637,3495.2,3494.3,2.413]
[1721201985215,3.45651637,3495.3,3494.4,0.05723111]
[1721201985354,2.86099,3495.3,3494.4,0.12509156]
[1721201985662,2.86097,3495.4,3494.4,0.06786045]
[1721201985865,2.86097,3495.4,3494.4,2.92951045]
[1721201986120,0.6948956,3495.3,3494.5,2.86163]
[1721201986400,0.6948956,3495.3,3494.5,2.92940612]
[1721201986604,2.86097,3495.4,3494.5,2.92940612]
[1721201987870,2.86097,3495.4,3494.7,2.413]
[1721201988407,2.8606,3495.8,3494.9,4.1138]
[1721201988779,2.8606,3495.8,3495.1,2.413]
[1721201989206,2.86041,3496.0,3495.2,0.0673668]
[1721201989414,3.44040364,3496.0,3495.2,0.0673668]
[1721201990668,2.8605,3495.9,3495.2,0.0673668]
[1721201992090,2.86059,3495.8,3495.2,0.0673668]
[1721201992283,2.86059,3495.8,3495.0,3.0]
[1721201992478,2.86059,3495.8,3495.3,0.06718147]
[1721201992713,2.86059,3495.8,3495.0,3.0]
[1721201992714,3.49069836,3495.8,3495.0,3.0]
[1721201992895,2.86059,3495.8,3495.4,0.06712301]
[1721201993100,2.86059,3495.8,3495.0,3.0]
[1721201993314,2.86059,3495.8,3495.5,0.06706456]
[1721201993523,2.86059,3495.8,3495.0,3.0]
[1721201993718,2.86059,3495.8,3495.6,0.06700611]
[1721201993917,2.86035,3496.1,3495.0,3.0]
[1721201994121,2.8605,3495.9,3495.7,0.06694766]
[1721201994321,3.52385559,3496.2,3495.0,5.86122]
[1721201994523,2.86026,3496.2,3495.8,0.06688922]
[1721201994823,2.86026,3496.2,3495.3,2.86098]
[1721201995020,2.86026,3496.2,3495.9,0.06683078]
[1721201995226,2.86026,3496.2,3495.3,2.86098]
[1721201995836,2.86033,3496.1,3495.4,0.06712301]
[1721201995991,5.19609,3496.8,3495.4,0.06712301]
[1721201995992,0.22871,3496.3,3495.4,0.06712301]
[1721201996199,2.86082,3495.5,3495.4,0.06712301]
[1721201996402,2.86082,3495.5,3494.5,5.29168]
[1721201996403,2.86108,3495.2,3494.5,2.4301]
[1721201996808,2.86108,3495.2,3494.1,7.03974]
[1721201997097,2.86108,3495.2,3494.3,4.0]
[1721201997519,2.86108,3495.2,3494.4,3.0]
[1721201997722,2.86108,3495.2,3494.3,3.0]
[1721201997926,2.86108,3495.2,3494.5,0.06545305]
[1721201998123,0.5722,3495.1,3494.3,3.0]
[1721201998430,2.86108,3495.2,3494.6,0.06539456]
[1721201998606,2.86108,3495.2,3494.3,5.86179]
[1721201999021,2.86108,3495.2,3494.4,2.47852171]
[1721202000731,2.86092,3495.4,3494.4,2.47852171]
[1721202000732,2.86092,3495.4,3494.4,5.34023171]
[1721202001049,2.86092,3495.4,3494.5,5.86157]
[1721202001366,2.86076,3495.6,3494.6,2.92695474]
[1721202001569,2.86076,3495.6,3494.7,2.3954]
[1721202001875,2.86076,3495.6,3494.8,0.06528778]
[1721202002232,2.86083,3495.5,3494.8,0.06528778]
[1721202002632,2.86083,3495.5,3494.5,5.86163]
[1721202002834,2.86083,3495.5,3494.6,2.92690474]
[1721202002835,0.572159,3495.4,3494.6,2.92690474]
[1721202003036,2.86083,3495.5,3494.6,2.92690474]
[1721202004075,2.86083,3495.5,3494.6,0.06540474]
[1721202004676,2.86083,3495.5,3494.6,2.92695474]
[1721202005357,2.86091,3495.4,3494.6,0.06540474]
[1721202005692,2.86088,3495.5,3494.6,0.06540474]
[1721202005871,2.8609,3495.4,3494.6,2.86155]
[1721202006048,2.8609,3495.4,3494.7,0.06537679]
[1721202006658,2.86076,3495.6,3494.7,0.06537679]
[1721202006659,2.86083,3495.5,3494.7,0.06537679]
[1721202007093,2.86076,3495.6,3494.7,0.06537679]
[1721202007094,2.86092,3495.4,3494.7,0.06537679]
[1721202007268,0.572168,3495.3,3494.7,0.06537679]
[1721202007593,2.86092,3495.4,3494.7,0.06537679]
[1721202008364,2.86098,3495.3,3494.7,0.06537679]
[1721202008561,2.86098,3495.3,3494.4,2.413]
[1721202008763,2.86098,3495.3,3494.8,0.06531832]
[1721202009094,2.86098,3495.3,3494.9,0.06525984]
[1721202009459,3.433154,3495.3,3494.5,3.0]
[1721202009793,3.433154,3495.3,3494.6,0.06543528]
[1721202010099,3.433154,3495.3,3494.4,5.86166]
[1721202010295,2.86098,3495.3,3494.7,0.06537679]
[1721202010485,2.86098,3495.3,3494.4,5.86166]
[1721202010688,2.86107,3495.2,3494.8,0.06531832]
[1721202010867,2.86107,3495.2,3494.4,5.86166]
[1721202011191,2.86107,3495.2,3494.5,0.06549376]
[1721202012116,2.86125,3495.0,3494.5,0.06549376]
[1721202012272,2.8614,3494.8,3494.5,0.06549376]
[1721202012795,2.8614,3494.8,3494.0,5.27503]
[1721202013094,2.8614,3494.8,3494.1,3.0]
[1721202013297,2.8614,3494.8,3494.1,3.06572773]
[1721202015270,2.86131,3494.9,3494.1,5.92767773]
[1721202018205,2.86125,3495.0,3494.1,5.92767773]
[1721202018389,1.04412756,3495.4,3494.3,1.7]
[1721202018578,0.44860119,3495.4,3494.6,2.413]
[1721202018790,3.30951119,3495.4,3494.6,2.413]
[1721202018965,3.30951119,3495.4,3494.7,0.06537679]
[1721202020389,0.44860119,3495.4,3494.7,0.06537679]
[1721202020772,0.44860119,3495.4,3494.7,2.92684679]
[1721202020998,2.86058,3495.8,3495.0,2.413]
[1721202021316,2.86058,3495.8,3495.1,2.5514476]
[1721202021478,0.59552637,3495.9,3495.1,2.5514476]
[1721202021677,3.45602637,3495.9,3495.1,2.5514476]
[1721202022407,4.59609824,3495.9,3495.1,2.5514476]
[1721202022595,0.59552637,3496.0,3495.7,2.86064]
[1721202022800,0.59552637,3496.4,3495.8,4.76530555]
[1721202023008,3.45534637,3496.8,3495.9,2.91769235]
[1721202023309,1.08309162,3496.8,3496.2,2.413]
[1721202023785,1.08309162,3496.8,3496.3,0.06442903]
[1721202024186,1.08309162,3496.8,3496.2,2.413]
[1721202024610,1.08309162,3496.8,3496.3,0.06442903]
[1721202024981,1.08309162,3496.8,3496.2,2.413]
[1721202025175,1.08309162,3496.8,3496.4,0.06427904]
[1721202025490,1.08309162,3496.8,3496.5,0.06422062]
[1721202025901,1.08309162,3496.8,3496.2,2.413]
[1721202026207,1.08309162,3496.8,3496.6,0.0641622]
[1721202026413,1.08309162,3496.8,3496.2,2.413]
[1721202026602,3.55940387,3496.9,3496.7,0.06410379]
[1721202026798,3.55940387,3496.9,3496.2,2.413]
[1721202027327,2.85976,3496.8,3496.3,0.06433746]
[1721202027632,2.85976,3496.8,3496.2,2.413]
[1721202027783,2.85976,3496.8,3496.4,0.06427904]
[1721202027982,2.85976,3496.8,3496.3,0.06433746]
[1721202028183,2.85976,3496.8,3496.5,0.06422062]
[1721202028383,0.1041975,3496.9,3496.4,0.06427904]
[1721202028778,0.1041975,3496.9,3496.2,5.27324]
[1721202029117,0.1041975,3496.9,3496.3,0.0571947]
[1721202029294,0.1041975,3496.9,3496.6,2.413]
[1721202029500,0.1041975,3496.9,3496.6,2.47019229]
[1721202029819,0.1041975,3496.9,3496.7,0.0639778]
[1721202031514,0.1041975,3496.9,3496.7,0.09338992]
[1721202033193,0.1041975,3496.9,3496.8,2.91694169]
[1721202033394,0.1041975,3496.9,3496.8,5.85975]
[1721202033589,0.1041975,3496.9,3496.8,5.95311254]
[1721202034591,0.1041975,3496.9,3496.8,3.09336254]
[1721202036123,0.1041975,3496.9,3496.8,5.95311254]
[1721202044157,0.1041975,3496.9,3496.8,3.09336254]
[1721202044673,0.1041975,3496.9,3496.8,5.95311254]
[1721202046087,0.1041975,3496.9,3496.8,8.81286254]
[1721202048571,0.1041975,3496.9,3496.8,11.83386254]
[1721202049857,0.1041975,3496.9,3496.8,8.81286254]
[1721202052169,0.1041975,3496.9,3496.8,11.83386254]
[1721202064605,0.1041975,3496.9,3496.8,5.95311254]
[1721202065359,0.1041975,3496.9,3496.8,3.09336254]
[1721202072404,0.1041975,3496.9,3496.8,4.09536254]
[1721202073567,0.1041975,3496.9,3496.8,1.09536254]
[1721202080614,0.1041975,3496.9,3496.8,0.09336254]
[1721202080820,0.1041975,3496.9,3496.1,0.60008517]
[1721202080821,3.6325884,3496.9,3496.1,0.60008517]
[1721202081030,3.6325884,3496.9,3495.9,3.76055776]
[1721202081031,0.6006139,3496.4,3496.3,1.002]
[1721202081305,0.60035045,3496.4,3496.3,1.002]
[1721202081807,0.90094533,3496.5,3496.3,1.002]
[1721202081808,0.60035045,3496.5,3496.3,1.002]
[1721202082176,0.90094533,3496.7,3496.3,1.002]
[1721202082177,0.60035045,3496.6,3496.3,1.002]
[1721202082373,0.60035045,3496.6,3496.5,1.002]
[1721202082589,0.60035045,3496.7,3496.5,1.002]
[1721202083209,0.60035045,3496.8,3496.5,1.002]
[1721202083371,0.70454795,3496.9,3496.7,1.002]
[1721202083766,0.1041975,3496.9,3496.7,1.002]
[1721202084603,0.70454795,3496.9,3496.7,1.002]
[1721202086274,0.60007349,3496.8,3496.7,1.002]
[1721202086471,3.13938691,3496.8,3496.0,10.2404]
[1721202086825,3.13938691,3496.8,3496.2,1.002]
[1721202086826,0.60006628,3496.6,3496.2,1.002]
[1721202087805,0.60006628,3496.6,3496.3,0.08752491]
[1721202088130,0.60006628,3496.6,3496.3,2.86013]
[1721202088405,1.29525024,3496.9,3496.3,2.86013]
[1721202088406,0.70426378,3496.9,3496.5,1.002]
[1721202088619,0.1041975,3496.9,3496.7,1.002]
[1721202089084,0.1041975,3496.9,3496.8,0.08722861]
[1721202089085,0.70426378,3496.9,3496.8,0.08722861]
[1721202089512,0.70426378,3496.9,3496.7,1.002]
[1721202089719,0.70426378,3496.9,3496.8,0.0872634]
[1721202090230,0.66976668,3496.9,3496.8,0.0872634]
[1721202090524,5.34696,3496.8,3496.0,10.401]
[1721202090674,5.34696,3496.8,3496.1,3.0]
[1721202090675,3.45961638,3496.7,3496.1,3.0]
[1721202090875,3.45970638,3496.6,3496.1,3.08769758]
[1721202091677,3.45982638,3496.5,3496.1,0.08769758]
[1721202091879,3.45985638,3496.4,3496.1,0.08769758]
[1721202092128,5.92405638,3496.3,3496.1,0.08769758]
[1721202092429,3.46001638,3496.2,3496.1,0.08769758]
[1721202092591,0.59977638,3496.2,3495.6,2.86073]
[1721202092824,1.19105274,3496.5,3495.7,2.405]
[1721202092825,0.59977638,3496.5,3495.7,2.405]
[1721202093006,0.59977638,3496.4,3495.7,5.426]
[1721202093207,3.50705274,3496.7,3496.1,2.405]
[1721202093208,0.59977638,3496.7,3496.1,2.405]
[1721202093403,0.59977638,3496.8,3496.1,2.405]
[1721202094534,0.59977638,3496.8,3496.1,5.26532]
[1721202094740,0.70397388,3496.9,3496.1,5.26532]
[1721202094946,0.1041975,3496.9,3496.1,5.26532]
[1721202095105,0.70397388,3496.9,3496.1,5.26532]
[1721202095523,0.1041975,3496.9,3496.2,2.86023]
[1721202096943,0.70397388,3496.9,3496.2,2.86023]
[1721202097341,0.1041975,3496.9,3496.2,2.86023]
[1721202098722,0.70397388,3496.9,3496.2,2.86023]
[1721202098939,0.1041975,3496.9,3496.2,2.86023]
[1721202099142,0.70397388,3496.9,3496.2,2.86023]
[1721202099345,0.1041975,3496.9,3496.2,2.86023]
[1721202099850,0.1041975,3496.9,3496.3,2.4839]
[1721202100011,0.1041975,3496.9,3496.5,2.405]
[1721202100461,0.1041975,3496.9,3496.5,3.0]
[1721202100766,0.1041975,3496.9,3496.4,3.0]
[1721202101051,0.1041975,3496.9,3496.4,5.86007]
[1721202102916,0.1041975,3496.9,3496.5,0.08747674]
[1721202105627,0.1041975,3496.9,3496.4,3.0]
[1721202106159,0.1041975,3496.9,3496.5,0.08746594]
[1721202107461,0.1041975,3496.9,3496.3,3.0]
[1721202107618,0.1041975,3496.9,3496.6,0.08740668]
[1721202107819,0.1041975,3496.9,3496.3,3.0]
[1721202108055,0.1041975,3496.9,3496.7,0.08734742]
[1721202108228,0.1041975,3496.9,3496.3,3.0]
[1721202108433,0.1041975,3496.9,3496.8,0.08728817]
[1721202108746,0.1041975,3496.9,3496.3,3.0]
[1721202108923,0.1041975,3496.9,3496.8,0.08728817]
[1721202109121,0.1041975,3496.9,3496.3,3.0]
[1721202109320,0.1041975,3496.9,3496.8,0.08728817]
[1721202109540,0.1041975,3496.9,3496.3,3.0]
[1721202109740,0.1041975,3496.9,3496.8,0.08728817]
[1721202109961,0.1041975,3496.9,3496.3,3.0]
[1721202110473,0.1041975,3496.9,3496.4,0.0875252]
[1721202110825,2.9639175,3496.9,3496.4,0.0875252]
[1721202111027,2.85988,3496.7,3496.4,0.0875252]
[1721202111654,2.85988,3496.7,3496.1,2.405]
[1721202111952,2.85988,3496.7,3496.5,0.08747058]
[1721202112119,2.85988,3496.7,3496.1,2.405]
[1721202112315,2.85988,3496.7,3496.6,0.08741132]
[1721202112520,2.85988,3496.7,3496.1,2.405]
[1721202113040,2.85988,3496.7,3496.2,0.08764838]
[1721202114467,2.85992,3496.6,3496.2,0.08764838]
[1721202115751,2.86,3496.5,3496.2,0.08764838]
[1721202116485,2.86,3496.5,3495.9,3.0]
[1721202116639,2.86,3496.5,3496.3,0.08761307]
[1721202116827,2.86,3496.5,3495.9,3.0]
[1721202117150,2.86,3496.5,3496.4,0.08755381]
[1721202117466,2.8601,3496.4,3495.9,3.0]
[1721202117810,5.3104,3496.4,3495.9,3.0]
[1721202117933,5.3104,3496.4,3496.0,0.08779089]
[1721202118134,2.86025,3496.2,3496.0,0.08779089]
[1721202118350,2.86025,3496.2,3496.1,1.002]
[1721202118677,2.86025,3496.2,3496.1,1.08973162]
[1721202119540,2.86025,3496.2,3496.1,0.08773162]
[1721202119746,2.86025,3496.2,3496.1,1.08973162]
[1721202119941,2.86025,3496.2,3496.1,1.002]
[1721202120265,2.86025,3496.2,3496.1,1.08973162]
[1721202123076,6.6875091,3496.2,3496.1,0.08773162]
[1721202123261,2.86058,3495.8,3495.5,7.38]
[1721202123472,5.22388,3495.8,3495.6,3.0]
[1721202123767,5.22388,3495.8,3495.4,1.002]
[1721202123978,6.18224289,3495.8,3494.9,7.98008517]
[1721202124193,2.86082,3495.5,3495.0,1.002]
[1721202124491,2.86082,3495.5,3495.2,1.002]
[1721202124843,2.8609,3495.4,3495.2,1.002]
[1721202126190,2.86082,3495.5,3495.0,3.0]
[1721202126354,2.86091,3495.4,3495.0,3.0]
[1721202128154,2.861,3495.3,3494.9,7.38]
[1721202128788,2.861,3495.3,3494.5,3.0]
[1721202129108,2.86115,3495.1,3494.5,3.0]
[1721202129256,2.86115,3495.1,3494.4,5.407]
[1721202129456,2.86115,3495.1,3494.4,3.0]
[1721202130413,2.86115,3495.1,3494.3,3.0]
[1721202130934,2.86131,3494.9,3494.3,3.0]
[1721202131220,2.86131,3494.9,3494.1,3.0]
[1721202131635,2.86131,3494.9,3494.1,5.86196]
[1721202132321,2.86131,3494.9,3494.1,3.0]
[1721202132497,2.86131,3494.9,3494.0,5.407]
[1721202132694,2.86131,3494.9,3494.0,8.26903]
[1721202133019,2.86131,3494.9,3494.1,2.95109517]
[1721202133207,2.86131,3494.9,3494.2,3.0]
[1721202133525,2.86131,3494.9,3494.2,3.08907583]
[1721202134121,2.4571,3495.2,3494.2,3.08907583]
[1721202134326,2.86156,3494.6,3494.2,0.08907583]
[1721202134744,2.86156,3494.6,3493.9,7.38]
[1721202135235,2.86156,3494.6,3494.0,0.08919452]
[1721202135392,5.22476,3494.6,3494.0,0.08919452]
[1721202135588,5.22476,3494.6,3494.0,3.08919452]
[1721202136228,2.86179,3494.4,3494.0,3.08919452]
[1721202138929,2.86156,3494.6,3494.0,3.08919452]
[1721202139145,2.86164,3494.5,3494.0,3.08919452]
[1721202140039,2.86174,3494.4,3494.0,3.08919452]
[1721202140900,2.86147,3494.7,3494.0,3.08919452]
[1721202141103,2.86159,3494.6,3494.0,3.08919452]
[1721202141724,2.86164,3494.5,3494.0,3.08919452]
[1721202143618,2.86173,3494.4,3494.0,3.08919452]
[1721202144153,2.86173,3494.4,3494.0,0.08919452]
[1721202144364,2.86188,3494.2,3494.0,0.08919452]
[1721202144526,2.86188,3494.2,3493.4,7.38]
[1721202144840,2.86188,3494.2,3493.2,17.076]
[1721202144841,2.86197,3494.1,3493.5,3.0]
[1721202145020,2.86197,3494.1,3493.5,0.08960816]
[1721202145217,2.86206,3494.0,3493.3,3.0]
[1721202145660,2.86206,3494.0,3493.4,0.08966753]
[1721202146969,2.86223,3493.8,3493.4,0.08966753]
[1721202147276,2.86239,3493.6,3493.4,0.08966753]
[1721202147470,2.86239,3493.6,3492.8,12.0866]
[1721202147633,2.86239,3493.6,3493.5,0.08960816]
[1721202147965,2.86239,3493.6,3492.8,12.0866]
[1721202148174,2.86239,3493.6,3493.5,0.08960816]
[1721202148373,2.86239,3493.6,3492.9,3.0]
[1721202148545,2.86239,3493.6,3493.5,0.08960816]
[1721202148740,2.86239,3493.6,3492.9,3.0]
[1721202148932,2.86239,3493.6,3493.5,0.08960816]
[1721202149264,3.681822,3493.6,3493.5,0.08960816]
[1721202149451,3.681822,3493.6,3492.9,3.0]
[1721202149644,2.86239,3493.6,3493.5,0.08960816]
[1721202149845,2.86239,3493.6,3492.9,3.0]
[1721202150050,2.86246,3493.5,3492.9,3.0]
[1721202150371,2.86246,3493.5,3492.8,2.407]
[1721202150931,2.4697,3493.7,3492.8,5.27002]
[1721202150932,5.33205,3493.7,3492.8,5.27002]
[1721202151160,2.86235,3493.7,3492.9,3.0]